Cogmind - Beta 12 X1 @@@ ROGUE MODE // 2022.08.04 @ 08:15:21 Player: Exp. Geonium Core Result: Destroyed by Y-72 Warden with Quantum Rifle Performance ------------- Evolutions (7) 3500 Regions Visited (20) 4000 Robots Destroyed (125) 625 Value Destroyed (6446) 6446 Prototype IDs (27) 540 Alien Tech Used (0) 0 Bonus (7537) 7537 TOTAL SCORE: 22648 Bonus ------- High Alert Combat Kills 571 Follower Combat Kills 3262 Entered Garrisons 1200 Used RIF Installer 3500 Aligned with FarCom 300 Friendly Fire -1296 Cogmind --------- Core Integrity 0/1300 Matter 300/300 Energy 100/100 System Corruption 3% Temperature Cool (9) Movement Core (50) Location -3/Garrison Parts ------- > --- POWER (1) -------- (None) > --- PROPULSION (2) --- (None) > --- UTILITY (16) ----- Advanced Melee Analysis Suite Graphene Brace Relay Coupler [Grunt] (13) Relay Coupler [Hunter] (7) Relay Coupler [Heavy] (16) > --- WEAPON (2) ------- (None) > --- INVENTORY (5) ---- Improved Recalibrator Improved Datajack Remote Datajack Peak State ------------ > --- POWER ------------ Light Antimatter Reactor > --- PROPULSION ------- Myomer Leg Myomer Leg > --- UTILITY ---------- Advanced Heat Sink Advanced Coolant Injector Large Storage Unit Experimental Matter Compressor Advanced Melee Analysis Suite Graphene Brace Hacking Suite Advanced Hacking Suite Relay Coupler [NC] Relay Coupler [Swarmer] Relay Coupler [Grunt] Relay Coupler [Grunt] Relay Coupler [Hunter] Relay Coupler [Hunter] Relay Coupler [Heavy] > --- WEAPON ----------- Matter Neutralizer Power Sword > --- INVENTORY -------- Reinforced Fission Core Light Antimatter Reactor Improved Treads Improved Treads Improved Treads Improved Treads Enhanced Armored Leg Enhanced Armored Leg Improved Recalibrator Autogun Improved Datajack Remote Datajack Remote Datajack [Rating: 107] Favorites ----------- Power Light Antimatter Reactor Engine Improved Deuterium Engine Power Core Light Nuclear Core Reactor Light Antimatter Reactor Propulsion Light Treads Treads Light Treads Leg Myomer Leg Wheel Wheel Utility Salvage Targeting Computer Device Advanced Heat Sink Storage High-capacity Storage Unit Processor Salvage Targeting Computer Hackware Hacking Suite Protection Light Armor Plating Weapon Autogun Energy Gun AWS/Thermal Energy Cannon Matter Neutralizer Ballistic Gun Autogun Ballistic Cannon Heavy Linear Accelerator Launcher Mini Grenade Launcher Special Weapon Remote Datajack Impact Weapon Hammer Slashing Weapon Great Axe Special Melee Weapon Improved Datajack Build | -11 -10 -10 -9 -9 -9 -8 -8 -8 -7 -7 -7 -7 -6 -6 -5 -5 -4 -4 -3 -3 ------- Run | Scr Mat Min Mat Min Exi Min Mat Gar Fac Gar Fac Gar Fac Gar Fac Gar Fac Ext Res Gar Slots Evolved 14 | . . . 2 . . . 2 . 2 . . . 2 . 2 . 2 . 2 . Power . | . . . . . . . . . . . . . . . . . . . . . Propulsion . | . . . . . . . . . . . . . . . . . . . . . Utility 14 | . . . 2 . . . 2 . 2 . . . 2 . 2 . 2 . 2 . Weapon . | . . . . . . . . . . . . . . . . . . . . . Parts Attached 253 | 2 10 . 16 1 1 1 10 27 17 19 18 11 16 14 13 28 6 24 1 18 Power 20 | . 1 . 1 . . . . . 1 1 1 1 . 2 1 2 . 6 . 3 Engine 6 | . 1 . 1 . . . . . . 1 . . . 1 . . . 2 . . Core 7 | . . . . . . . . . 1 . 1 . . 1 1 2 . 1 . . Reactor 7 | . . . . . . . . . . . . 1 . . . . . 3 . 3 Propulsion 46 | 2 3 . 4 . . . 2 3 1 6 3 . 3 5 3 2 2 3 . 4 Treads 29 | 2 3 . 4 . . . 2 3 1 3 2 . 2 1 3 1 . . . 2 Leg 14 | . . . . . . . . . . 3 . . . 3 . 1 2 3 . 2 Wheel 3 | . . . . . . . . . . . 1 . 1 1 . . . . . . Hover . | . . . . . . . . . . . . . . . . . . . . . Flight . | . . . . . . . . . . . . . . . . . . . . . Utility 69 | . 2 . 3 . 1 . 3 4 4 4 3 3 10 2 4 12 3 7 1 3 Device 8 | . . . . . . . . . . . . . . . . 3 2 3 . . Storage 5 | . 1 . . . 1 . . . . . . . . . . . 1 2 . . Processor 8 | . 1 . 1 . . . 1 1 2 . . 1 . . . . . 1 . . Hackware 42 | . . . 1 . . . 1 1 2 3 3 2 10 2 4 8 . 1 1 3 Protection 6 | . . . 1 . . . 1 2 . 1 . . . . . 1 . . . . Artifact . | . . . . . . . . . . . . . . . . . . . . . Weapon 118 | . 4 . 8 1 . 1 5 20 11 8 11 7 3 5 5 12 1 8 . 8 Energy Gun 9 | . . . . . . 1 . . 1 2 2 . . . 2 1 . . . . Energy Cannon 2 | . . . . . . . . . . . . . . . . . . . . 2 Ballistic Gun 43 | . 3 . 6 1 . . 4 5 4 2 4 . . . 2 6 . 5 . 1 Ballistic Cannon 5 | . . . . . . . . 5 . . . . . . . . . . . . Launcher 12 | . . . 1 . . . 1 4 . 1 1 3 . 1 . . . . . . Special Weapon 21 | . . . . . . . . . 4 2 2 2 1 1 1 4 1 1 . 2 Impact Weapon 14 | . 1 . 1 . . . . 6 2 1 1 2 . . . . . . . . Slashing Weapon 7 | . . . . . . . . . . . 1 . 1 2 . 1 . 1 . 1 Piercing Weapon . | . . . . . . . . . . . . . . . . . . . . . Special Melee Weapon 5 | . . . . . . . . . . . . . 1 1 . . . 1 . 2 Unidentified Prototypes 2 | . . . . . . . . . 1 . . . . . . . . 1 . . Parts Lost 80 | . 1 1 4 . . . 1 5 . 3 8 1 1 13 7 5 . 14 . 16 Power 11 | . 1 1 1 . . . . . . 1 1 . . 2 . . . 2 . 2 Propulsion 19 | . . . 2 . . . . 3 . 1 3 . 1 2 2 . . . . 5 Utility 31 | . . . . . . . . 2 . 1 1 . . 5 4 3 . 9 . 6 Weapon 19 | . . . 1 . . . 1 . . . 3 1 . 4 1 2 . 3 . 3 Highest Loss Streak 16 | . 1 1 2 . . . 1 2 . 2 3 1 1 4 7 10 . 6 . 16 To Critical Strikes . | . . . . . . . . . . . . . . . . . . . . . Average Slot Usage (%) 87 | . 88 91 94 88 88 80 86 84 96 88 96 98 93 80 51 79 88 84 68 79 Engine 1 | . 13 6 6 . . . . . . 4 2 . . . . . . 1 . . Core 1 | . . . . . . . . . 6 1 3 . . 4 2 4 5 . . . Reactor 1 | . . . . . . . . . . . . 6 6 . . . . 2 4 3 Treads 12 | . 27 28 21 22 22 22 18 17 15 11 11 15 7 2 10 4 3 . . . Leg 2 | . . . . . . . . . . 3 . . . 8 . 4 7 10 9 7 Device 2 | . . . . . . . . . . . . . . . . 12 16 18 14 13 Storage 7 | . 14 14 11 11 11 11 9 9 7 7 7 7 6 6 4 . 1 6 9 8 Processor 10 | . 4 14 21 11 11 11 16 21 14 14 7 14 9 5 . . . 1 4 4 Hackware 25 | . . . 10 11 11 11 13 13 28 25 38 37 46 40 23 35 43 30 25 32 Protection 4 | . . . . 11 11 11 12 8 7 6 5 . . . . 2 . . . . Energy Gun 1 | . 2 . . . . 7 1 . . 4 . . . . 4 1 . . . . Ballistic Gun 7 | . 24 28 20 22 22 6 15 7 2 1 8 . . . 1 7 6 8 . . Special Weapon 1 | . . . . . . . . . 5 1 2 6 5 2 . . 3 . . . Impact Weapon 1 | . . . . . . . . 4 6 1 1 6 2 . . . . . . . Naked Turns . | . . . . . . . . . . . . . . . . . . . . . Heaviest Build 70 | 10 15 15 22 19 49 51 52 70 56 61 61 57 59 59 55 33 38 48 37 50 Greatest Support 56 | 40 40 40 40 40 40 40 46 46 46 56 48 48 48 48 40 23 40 50 50 50 Greatest Overweight (x) 13 | . . . . . 1 1 1 1 1 2 5 1 2 13 1 1 . 1 . 1 Average Overweight (x) . | . . . . . . 1 1 . 1 . 3 . 1 1 . . . . . . Largest Inventory Capacity 20 | 8 10 10 10 10 20 20 20 20 20 20 20 20 20 20 20 5 15 15 15 15 Average Capacity 16 | 8 8 10 10 10 15 20 20 20 20 20 20 20 20 20 18 5 7 15 15 14 Most Carried 20 | 6 10 10 10 10 12 14 17 20 20 20 20 20 20 20 19 5 10 15 14 14 Average Carried 15 | 5 7 10 9 9 10 12 15 18 19 18 19 19 18 16 15 3 5 12 14 12 Final Capacity 20 | 8 10 10 10 10 20 20 20 20 20 20 20 20 20 20 5 5 15 15 15 5 Final Carried 20 | 4 10 10 10 10 12 12 15 20 20 20 16 20 17 16 4 5 10 14 14 3 Class Distribution -------------------- 39% | Bothacker-Mutant 24% | Botlord-Mutant 15% | Scavenger-Mutant 13% | Mutant 7% | Hacker-Mutant Dominant Class ---------------- Mutant | -10/Materials Mutant | -10/Mines Scavenger-Mutant | -9/Materials Scavenger-Mutant | -9/Mines Scavenger-Mutant | -9/Exiles Scavenger-Mutant | -8/Mines Mutant | -8/Materials Hacker-Mutant | -8/Garrison Bothacker-Mutant | -7/Factory Bothacker-Mutant | -7/Garrison Bothacker-Mutant | -7/Factory Bothacker-Mutant | -7/Garrison Botlord-Mutant | -6/Factory Botlord-Mutant | -6/Garrison Botlord-Mutant | -5/Factory Botlord-Mutant | -5/Garrison Botlord-Mutant | -4/Factory Bothacker-Mutant | -4/Extension Bothacker-Mutant | -3/Research Botlord-Mutant | -3/Garrison Resources | -11 -10 -10 -9 -9 -9 -8 -8 -8 -7 -7 -7 -7 -6 -6 -5 -5 -4 -4 -3 -3 ----------- Run | Scr Mat Min Mat Min Exi Min Mat Gar Fac Gar Fac Gar Fac Gar Fac Gar Fac Ext Res Gar Matter Collected 4819 | 200 114 60 245 37 . 64 250 724 277 313 460 233 354 110 166 589 . 558 . 65 Remotely . | . . . . . . . . . . . . . . . . . . . . . Salvage Created 5162 | . 240 46 461 . . 111 317 822 207 955 758 155 227 . 51 303 . 444 . 65 Parts 259 | . 19 3 34 . . 7 26 44 13 33 31 3 14 . 2 12 . 16 . 2 Haulers Intercepted 1 | . 1 . . . . . . . . . . . . . . . . . . . Recyclers Shooed 9 | . . . 4 . . . . . . . . . . . . . . 5 . . Parts Field Recycled . | . . . . . . . . . . . . . . . . . . . . . Retrieved Matter . | . . . . . . . . . . . . . . . . . . . . . Parts Self-Destructed . | . . . . . . . . . . . . . . . . . . . . . Prevented . | . . . . . . . . . . . . . . . . . . . . . Kills | -11 -10 -10 -9 -9 -9 -8 -8 -8 -7 -7 -7 -7 -6 -6 -5 -5 -4 -4 -3 -3 ------- Run | Scr Mat Min Mat Min Exi Min Mat Gar Fac Gar Fac Gar Fac Gar Fac Gar Fac Ext Res Gar Combat Hostiles Destroyed 104 | . 6 1 15 . . 4 9 21 4 16 11 5 . . 1 6 . 3 . 2 Melee 3 | . . . . . . . . . . . . . . . . 1 . . . 2 Guns 65 | . 6 1 8 . . 4 5 5 4 13 10 . . . 1 5 . 3 . . Cannons 6 | . . . . . . . . 6 . . . . . . . . . . . . AOE 29 | . . . 7 . . . 4 10 . 3 . 5 . . . . . . . . Classes Destroyed 15 | . 5 . 3 . . 1 . 2 . 1 2 . 1 . . . . . . . Worker 5 | . . . . . . . . . . . 3 . 2 . . . . . . . Hauler 1 | . 1 . . . . . . . . . . . . . . . . . . . Recycler 4 | . . . 1 . . . . . . . . . 1 . . . . 2 . . Mechanic 1 | . 1 . . . . . . . . . . . . . . . . . . . Operator 3 | . 2 . . . . . . . . . . . . . . . . 1 . . Watcher 3 | . . . 1 . . . . . . . 2 . . . . . . . . . Swarmer 34 | . 4 . 7 . . 3 4 6 2 . . 3 . . . 2 . 1 . 2 Grunt 54 | . 2 1 5 . . . 3 11 2 12 10 3 . . 1 3 . 1 . . Brawler 2 | . . . . . . . . . . . 1 . . . . . . 1 . . Duelist 2 | . . . . . . . . . . 2 . . . . . . . . . . Sentry 9 | . . . 3 . . . 2 1 . 2 . . . . . 1 . . . . Specialist 1 | . . . . . . . . 1 . . . . . . . . . . . . Hunter 1 | . . . . . . 1 . . . . . . . . . . . . . . Programmer 4 | . . . . . . . . 2 1 . . 1 . . . . . . . . Heavy 1 | . . . . . . . . . . . . . 1 . . . . . . . Best Kill Streak 11 | . 4 1 11 . . 4 5 5 2 6 5 3 1 . 1 1 . 1 . 2 Combat Bots Only 10 | . 4 1 10 . . 4 5 5 2 6 3 3 . . 1 1 . 1 . 2 Max Kills in Single Turn 3 | . 1 1 3 . . 1 2 2 1 2 2 3 1 . 1 1 . 1 . 1 Gunslinging . | . . . . . . . . . . . . . . . . . . . . . Exploded 3 | . . . 2 . . . 2 2 . 2 . 3 . . . . . . . . Melee 1 | . . . . . . . . . . . . . . . . 1 . . . 1 Uniques/NPCs Destroyed . | . . . . . . . . . . . . . . . . . . . . . Combat | -11 -10 -10 -9 -9 -9 -8 -8 -8 -7 -7 -7 -7 -6 -6 -5 -5 -4 -4 -3 -3 -------- Run | Scr Mat Min Mat Min Exi Min Mat Gar Fac Gar Fac Gar Fac Gar Fac Gar Fac Ext Res Gar Damage Taken 13617 | . 290 116 724 . . 96 436 585 191 983 1365 203 389 1503 1447 904 20 1739 . 2626 Core 3642 | . 62 18 87 . . 25 24 124 16 205 246 14 57 498 390 172 . 392 . 1312 Absorbed by Shields 228 | . . . . . . . . . . 86 . . 69 73 . . . . . . Regen/Repaired (Parts) 126 | . . . . . . . . . . . 126 . . . . . . . . . Core Remaining (%) 60 | 100 . 68 . . . 72 . 73 . . . 31 . 34 . 43 . 65 . . Volleys Fired 409 | . 30 11 39 . . . 27 43 18 16 43 9 37 7 19 51 8 43 . 8 Largest 2 | . 2 2 2 . . . 2 2 2 2 2 1 1 1 2 2 1 2 . 2 Hottest 128 | . 60 40 46 . . . 46 83 50 48 50 30 5 30 108 81 5 56 . 128 Shots Fired 755 | . 60 22 70 . . 13 52 60 32 96 107 10 37 7 27 66 8 78 . 10 Gun 599 | . 60 22 65 . . 13 50 34 25 88 99 . . . 18 48 . 75 . 2 Cannon 24 | . . . . . . . . 18 . . . . . . . . . . . 6 Launcher 27 | . . . 5 . . . 2 8 . 2 1 8 . 1 . . . . . . Special 105 | . . . . . . . . . 7 6 7 2 37 6 9 18 8 3 . 2 Kinetic 474 | . 47 22 65 . . . 50 52 22 15 67 . . . 10 47 . 75 . 2 Thermal 151 | . 13 . . . . 13 . . 3 73 32 . . . 8 3 . . . 6 Explosive 27 | . . . 5 . . . 2 8 . 2 1 8 . 1 . . . . . . Electromagnetic . | . . . . . . . . . . . . . . . . . . . . . Robot Hit Streak 31 | . 28 5 8 . . 6 14 6 13 25 31 10 15 5 8 8 6 9 . 6 Robot Miss Streak 4 | . 1 2 3 . . 1 3 3 1 4 3 . 1 1 4 3 3 4 . 2 Penetration Max 1 | . . . . . . . . . . . . . . . . 1 . 1 . . Secondary Targets 5 | . 2 . . . . . . . 1 . . . . . . 1 . 1 . . Max Gunslinging Chain 1 | . 1 . . . . . . . 1 . . . . . . 1 . 1 . . Autonomous 122 | . . . . . . 13 . . 3 73 33 . . . . . . . . . Shots Hit Robots 599 | . 50 13 45 . . 10 43 52 25 82 79 6 46 13 17 40 6 54 . 18 Core Hits 230 | . 18 4 28 . . 6 16 32 6 35 25 16 3 1 4 16 . 19 . 1 Critical Kills 2 | . 1 . . . . . . . . . 1 . . . . . . . . . Critical Parts Destroyed 5 | . 1 . . . . . . 4 . . . . . . . . . . . . Critical Strikes 11 | . 2 . . . . . . 5 . . 1 . 1 1 . . . . . 1 Destroy 3 | . 2 . . . . . . . . . 1 . . . . . . . . . Blast 1 | . . . . . . . . 1 . . . . . . . . . . . . Smash 4 | . . . . . . . . 4 . . . . . . . . . . . . Sever 3 | . . . . . . . . . . . . . 1 1 . . . . . 1 Melee Attacks 157 | . 1 . 2 . . . . 38 9 14 15 5 16 17 . 6 . 6 . 28 Impact 84 | . 1 . 2 . . . . 38 9 14 14 5 1 . . . . . . . Slashing 59 | . . . . . . . . . . . 1 . 15 16 . 6 . 1 . 20 Piercing . | . . . . . . . . . . . . . . . . . . . . . Sneak Attacks 21 | . . . . . . . . . . . . . 10 1 . . . 5 . 5 Combat Hostiles 1 | . . . . . . . . . . . . . . 1 . . . . . . Follow-up Attacks . | . . . . . . . . . . . . . . . . . . . . . Damage Inflicted 14467 | . 443 126 1049 7 . 384 946 2890 393 2186 1686 945 676 392 284 766 7 929 . 358 Guns 8085 | . 440 119 507 . . 365 648 305 393 2007 1578 . . . 284 531 . 874 . 34 Cannons 953 | . . . . . . . . 812 . . . . . . . . . . . 141 Explosions 3018 | . . . 542 . . . 297 974 . 178 30 945 . 52 . . . . . . Melee 2271 | . . . . . . . . 799 . . 78 . 676 315 . 235 . . . 168 Ramming 140 | . 3 7 . 7 . 19 1 . . 1 . . . 25 . . 7 55 . 15 Kinetic 5654 | . 337 119 507 . . . 648 1117 320 145 830 . . . 192 531 . 874 . 34 Thermal 3384 | . 103 . . . . 365 . . 73 1862 748 . . . 92 . . . . 141 Explosive 3018 | . . . 542 . . . 297 974 . 178 30 945 . 52 . . . . . . Electromagnetic . | . . . . . . . . . . . . . . . . . . . . . Impact 921 | . . . . . . . . 799 . . 78 . 44 . . . . . . . Slashing 1350 | . . . . . . . . . . . . . 632 315 . 235 . . . 168 Piercing . | . . . . . . . . . . . . . . . . . . . . . Highest Corruption 8 | . . . . . . . . . . . 6 6 . 2 8 8 . . 2 3 Average Corruption 4 | . . . . . . . . . . . 2 6 . 1 4 8 . . 2 2 Corruption Purged . | . . . . . . . . . . . . . . . . . . . . . Corruption Blocked . | . . . . . . . . . . . . . . . . . . . . . Effects 84 | . . . . . . . . . . . 6 29 . 7 3 34 . . . 5 Message Errors 22 | . . . . . . . . . . . 1 12 . 2 1 5 . . . 1 Matter Fused 17 | . . . . . . . . . . . 3 4 . 1 1 5 . . . 3 Heat Flow Errors 12 | . . . . . . . . . . . . 4 . 1 . 6 . . . 1 Energy Discharges 11 | . . . . . . . . . . . 1 4 . . . 6 . . . . Data Loss (minor) 9 | . . . . . . . . . . . 1 2 . 2 . 4 . . . . Data Loss (major) 3 | . . . . . . . . . . . . 1 . 1 . 1 . . . . Misfires 4 | . . . . . . . . . . . . 1 . . . 3 . . . . Alerts 4 | . . . . . . . . . . . . 1 . . . 3 . . . . Weapon Failures 2 | . . . . . . . . . . . . . . . 1 1 . . . . Overload Shots . | . . . . . . . . . . . . . . . . . . . . . Overflow Damage 463 | . . . . . . . 23 304 . 3 . 15 83 . . . . 20 . 15 Projectiles 135 | . . . . . . . . 135 . . . . . . . . . . . . Explosions 43 | . . . . . . . 23 2 . 3 . 15 . . . . . . . . Melee 285 | . . . . . . . . 167 . . . . 83 . . . . 20 . 15 Knockbacks 12 | . . . . . . . . 11 . . . . . 1 . . . . . . Impact 7 | . . . . . . . . 6 . . . . . 1 . . . . . . Kinetic 4 | . . . . . . . . 4 . . . . . . . . . . . . Secondary 1 | . . . . . . . . 1 . . . . . . . . . . . . Self-Inflicted Damage 200 | . . . 62 . . . . 29 . 21 22 47 . 12 . . . . . 7 Shots 6 | . . . 2 . . . . 1 . 1 1 1 . . . . . . . . Rammed 24 | . 1 4 . 2 . 4 1 . . 1 . . . 1 1 . 2 . . 7 Targets Rammed 29 | . 2 4 . 2 . 4 1 . . 1 . . . 1 1 . 2 4 . 7 Kicked 4 | . . . . . . . . . . . . . . . . . . 4 . . Crushed 1 | . 1 . . . . . . . . . . . . . . . . . . . Highest Temperature 206 | . 88 15 7 . . . 25 77 40 13 38 206 . 71 84 142 . . . 165 Average Temperature 32 | . 34 7 3 . . . 7 31 11 9 13 88 . 42 36 70 . . . 72 Received Heat Transfer 3290 | . 102 63 222 . . . 225 189 90 430 459 36 77 599 90 297 . 219 . 192 Siege Activations . | . . . . . . . . . . . . . . . . . . . . . Robots Corrupted . | . . . . . . . . . . . . . . . . . . . . . Combat Hostiles . | . . . . . . . . . . . . . . . . . . . . . Parts Fried 4 | . . . . . . . . 3 . . . . . . . . . 1 . . Impact Corruptions 6 | . . . . . . . . 5 . . . . . . . . . 1 . . Robots Melted 1 | . . . . . . . . . . . 1 . . . . . . . . . Combat Hostiles 1 | . . . . . . . . . . . 1 . . . . . . . . . Parts Melted 7 | . 1 . . . . 2 . . 1 1 2 . . . . . . . . . Heat Transferred 4369 | . 225 . . . . 444 . . 74 2368 962 . . . 148 . . . . 148 Parts Sabotaged . | . . . . . . . . . . . . . . . . . . . . . Parts Stolen . | . . . . . . . . . . . . . . . . . . . . . Parts Stripped . | . . . . . . . . . . . . . . . . . . . . . Power Chain Reactions . | . . . . . . . . . . . . . . . . . . . . . Missiles Intercepted . | . . . . . . . . . . . . . . . . . . . . . Alert | -11 -10 -10 -9 -9 -9 -8 -8 -8 -7 -7 -7 -7 -6 -6 -5 -5 -4 -4 -3 -3 ------- Run | Scr Mat Min Mat Min Exi Min Mat Gar Fac Gar Fac Gar Fac Gar Fac Gar Fac Ext Res Gar Peak Influence 1395 | . 235 208 642 190 . 101 257 936 521 822 557 1175 1395 1305 713 738 420 535 269 356 Initial 973 | . . 91 80 190 . . . 37 491 256 431 237 616 973 674 320 387 205 269 201 Average 496 | . 150 180 308 190 . 36 82 462 425 510 446 813 846 1136 667 567 406 403 269 261 Maximum Alert Level 4 | . 1 1 2 . . . 1 3 2 3 2 4 4 4 3 3 2 2 1 1 Low Security (%) 16 | 100 65 50 12 100 . 100 81 25 . . . . . . . . . . . 1 Level 1 24 | . 34 49 58 . . . 18 18 43 26 16 20 . . . 18 33 41 100 98 Level 2 37 | . . . 28 . . . . 28 56 63 83 12 35 . 79 72 66 57 . . Level 3 15 | . . . . . . . . 27 . 9 . 53 42 33 20 8 . . . . Level 4 6 | . . . . . . . . . . . . 12 21 66 . . . . . . Level 5 . | . . . . . . . . . . . . . . . . . . . . . High Security . | . . . . . . . . . . . . . . . . . . . . . Max Security . | . . . . . . . . . . . . . . . . . . . . . Squads Dispatched 21 | . 3 . 2 . . . . . 4 . 2 . 7 . 1 . . 2 . . Investigation 2 | . 1 . 1 . . . . . . . . . . . . . . . . . Extermination 3 | . . . . . . . . . 1 . 1 . . . 1 . . . . . Reinforcement 8 | . 2 . 1 . . . . . 1 . 1 . 2 . . . . 1 . . Assault 3 | . . . . . . . . . . . . . 2 . . . . 1 . . Garrison 5 | . . . . . . . . . 2 . . . 3 . . . . . . . Intercept . | . . . . . . . . . . . . . . . . . . . . . Searches Triggered . | . . . . . . . . . . . . . . . . . . . . . Construction Impeded 1 | . . . . . . . . . 1 . . . . . . . . . . . Haulers Reinforced 1 | . . . . . . . . . . . 1 . . . . . . . . . Active Scanning Responses . | . . . . . . . . . . . . . . . . . . . . . Cargo Convoy Interrupts . | . . . . . . . . . . . . . . . . . . . . . Stealth | -11 -10 -10 -9 -9 -9 -8 -8 -8 -7 -7 -7 -7 -6 -6 -5 -5 -4 -4 -3 -3 --------- Run | Scr Mat Min Mat Min Exi Min Mat Gar Fac Gar Fac Gar Fac Gar Fac Gar Fac Ext Res Gar Distress Signals 9 | . . . 2 . . . 3 . . . 1 . 1 . 1 . . 1 . . Communications Jammed . | . . . . . . . . . . . . . . . . . . . . . Distress Signals . | . . . . . . . . . . . . . . . . . . . . . Times Spotted 337 | . 16 4 22 . . 5 16 22 11 19 19 25 60 25 13 27 2 27 . 24 Peak Tracking Total 12 | . 4 2 8 . . 4 6 5 4 6 4 6 7 8 8 7 3 5 . 12 Tactical Retreats 15 | . 1 . . . . . . 1 . 1 2 . 2 6 1 1 . . . . Traps | -11 -10 -10 -9 -9 -9 -8 -8 -8 -7 -7 -7 -7 -6 -6 -5 -5 -4 -4 -3 -3 ------- Run | Scr Mat Min Mat Min Exi Min Mat Gar Fac Gar Fac Gar Fac Gar Fac Gar Fac Ext Res Gar Traps Triggered 23 | . 3 . . . . . . 2 . 4 3 2 1 5 1 . . . 1 1 Indirectly . | . . . . . . . . . . . . . . . . . . . . . Trap Hack Attempts 4 | . . . . . . . . . . . . . 1 3 . . . . . . Triggered . | . . . . . . . . . . . . . . . . . . . . . Disarmed 1 | . . . . . . . . . . . . . 1 . . . . . . . Reprogrammed . | . . . . . . . . . . . . . . . . . . . . . Reused . | . . . . . . . . . . . . . . . . . . . . . Traps Extracted . | . . . . . . . . . . . . . . . . . . . . . Installed . | . . . . . . . . . . . . . . . . . . . . . Triggered . | . . . . . . . . . . . . . . . . . . . . . Machines | -11 -10 -10 -9 -9 -9 -8 -8 -8 -7 -7 -7 -7 -6 -6 -5 -5 -4 -4 -3 -3 ---------- Run | Scr Mat Min Mat Min Exi Min Mat Gar Fac Gar Fac Gar Fac Gar Fac Gar Fac Ext Res Gar Machines Disabled 22 | . . . 2 . . . 1 3 . 2 . 4 3 1 1 3 . 1 . 1 Max in Single Turn 1 | . . . 1 . . . 1 1 . 1 . 1 . 1 1 1 . 1 . 1 Garrison Access 1 | . . . . . . . . . . . . . 1 . . . . . . . Garrison Relay 12 | . . . . . . . . 2 . 2 . 3 . 1 . 2 . . . 2 Machines Sabotaged . | . . . . . . . . . . . . . . . . . . . . . Garrisons Compromised 1 | . . . . . . . . . . . . . 1 . . . . . . . Overloaded Fab Kills . | . . . . . . . . . . . . . . . . . . . . . Hacking | -11 -10 -10 -9 -9 -9 -8 -8 -8 -7 -7 -7 -7 -6 -6 -5 -5 -4 -4 -3 -3 --------- Run | Scr Mat Min Mat Min Exi Min Mat Gar Fac Gar Fac Gar Fac Gar Fac Gar Fac Ext Res Gar Machines Accessed 29 | . . . 2 . 1 . 2 1 2 1 6 3 2 . 2 1 2 3 1 . Terminals 20 | . . . 2 . . . 1 1 1 1 4 3 1 . 1 1 1 3 . . Fabricators 1 | . . . . . . . . . . . 1 . . . . . . . . . Repair Stations . | . . . . . . . . . . . . . . . . . . . . . Recycling Units . | . . . . . . . . . . . . . . . . . . . . . Scanalyzers . | . . . . . . . . . . . . . . . . . . . . . Garrison Access 7 | . . . . . . . 1 . 1 . 1 . 1 . 1 . 1 . 1 . Total Hacks 74 | . . . 13 . 1 . 3 2 3 2 24 4 3 . 2 2 4 9 2 . Successful 40 | . . . 5 . 1 . 3 1 1 1 12 3 2 . 1 1 2 6 1 . Failed 33 | . . . 7 . . . . 1 2 1 12 1 1 . 1 1 2 3 1 . Catastrophic 11 | . . . . . . . . . 1 1 3 . 1 . 1 1 2 . 1 . Database Lockouts 1 | . . . 1 . . . . . . . . . . . . . . . . . Manual 38 | . . . 9 . 1 . 2 . . 1 15 . 2 . . . 1 6 1 . Terminals 57 | . . . 13 . . . 2 2 2 2 16 4 2 . 1 2 2 9 . . Fabricators 6 | . . . . . . . . . . . 6 . . . . . . . . . Repair Stations . | . . . . . . . . . . . . . . . . . . . . . Recycling Units . | . . . . . . . . . . . . . . . . . . . . . Scanalyzers . | . . . . . . . . . . . . . . . . . . . . . Garrison Access 10 | . . . . . . . 1 . 1 . 2 . 1 . 1 . 2 . 2 . Terminal Hacks 19 | . . . 5 . 1 . 2 1 . 1 4 3 . . . 1 . 1 . . Robot Schematic 1 | . . . . . . . . . . . 1 . . . . . . . . . Robot Analysis 2 | . . . 2 . . . . . . . . . . . . . . . . . Open Door 1 | . . . . . . . . . . . . . . . . . . 1 . . Level Access Points 1 | . . . 1 . . . . . . . . . . . . . . . . . Branch Access Points 1 | . . . 1 . . . . . . . . . . . . . . . . . Emergency Access Points 3 | . . . . . . . . 1 . 1 . 1 . . . . . . . . Terminal Index 2 | . . . . . . . 1 . . . 1 . . . . . . . . . Fabricator Index 1 | . . . . . . . . . . . 1 . . . . . . . . . Garrison Index 1 | . . . . . . . 1 . . . . . . . . . . . . . Zone Layout 2 | . . . 1 . . . . . . . 1 . . . . . . . . . Garrison Registry 2 | . . . . . . . . . . . . 1 . . . 1 . . . . Patrol Navigation 1 | . . . . . . . . . . . . 1 . . . . . . . . EX-Prototype ID Bank 1 | . . . . . 1 . . . . . . . . . . . . . . . Fabricator Hacks 4 | . . . . . . . . . . . 4 . . . . . . . . . Load Schematic 2 | . . . . . . . . . . . 2 . . . . . . . . . Build 2 | . . . . . . . . . . . 2 . . . . . . . . . Repair Station Hacks . | . . . . . . . . . . . . . . . . . . . . . Recycling Unit Hacks . | . . . . . . . . . . . . . . . . . . . . . Scanalyzer . | . . . . . . . . . . . . . . . . . . . . . Garrison Access Hacks 7 | . . . . . . . 1 . 1 . 1 . 1 . 1 . 1 . 1 . Unlock Access 7 | . . . . . . . 1 . 1 . 1 . 1 . 1 . 1 . 1 . Unauthorized Hacks 10 | . . . . . . . . . . . 3 . 1 . . . 1 5 . . Terminals 9 | . . . . . . . . . . . 3 . 1 . . . . 5 . . Track 3 | . . . . . . . . . . . 1 . . . . . . 2 . . Botnet 4 | . . . . . . . . . . . 1 . 1 . . . . 2 . . Operators 2 | . . . . . . . . . . . 1 . . . . . . 1 . . Fabricators . | . . . . . . . . . . . . . . . . . . . . . Repair Stations . | . . . . . . . . . . . . . . . . . . . . . Recycling Units . | . . . . . . . . . . . . . . . . . . . . . Scanalyzers . | . . . . . . . . . . . . . . . . . . . . . Garrison Access 1 | . . . . . . . . . . . . . . . . . 1 . . . Reprogram 1 | . . . . . . . . . . . . . . . . . 1 . . . Data Cores Recovered . | . . . . . . . . . . . . . . . . . . . . . Used . | . . . . . . . . . . . . . . . . . . . . . Hacking Detections 24 | . . . 2 . . . 2 1 1 1 6 2 2 . 2 1 2 1 1 . Full Trace Events 2 | . . . 1 . . . . . . . . . . . . 1 . . . . Feedback Events . | . . . . . . . . . . . . . . . . . . . . . Feedback Blocked . | . . . . . . . . . . . . . . . . . . . . . Robot Schematics Acquired 1 | . . . . . . . . . . . 1 . . . . . . . . . Robots Built 4 | . . . . . . . . . . . 4 . . . . . . . . . Authchips 2 | . . . . . . . . . . . 2 . . . . . . . . . Time 88 | . . . . . . . . . . . 88 . . . . . . . . . Total Robot Build Rating 16 | . . . . . . . . . . . 16 . . . . . . . . . Part Schematics Acquired . | . . . . . . . . . . . . . . . . . . . . . Parts Built . | . . . . . . . . . . . . . . . . . . . . . Authchips . | . . . . . . . . . . . . . . . . . . . . . Time . | . . . . . . . . . . . . . . . . . . . . . Total Part Build Rating . | . . . . . . . . . . . . . . . . . . . . . Parts Repaired . | . . . . . . . . . . . . . . . . . . . . . Time . | . . . . . . . . . . . . . . . . . . . . . Parts Recycled . | . . . . . . . . . . . . . . . . . . . . . Recycled Matter . | . . . . . . . . . . . . . . . . . . . . . Retrieved Matter . | . . . . . . . . . . . . . . . . . . . . . Retrieved Components . | . . . . . . . . . . . . . . . . . . . . . Parts Scanalyzed . | . . . . . . . . . . . . . . . . . . . . . Part Schematics Acquired . | . . . . . . . . . . . . . . . . . . . . . Parts Damaged . | . . . . . . . . . . . . . . . . . . . . . Bothacking | -11 -10 -10 -9 -9 -9 -8 -8 -8 -7 -7 -7 -7 -6 -6 -5 -5 -4 -4 -3 -3 ------------ Run | Scr Mat Min Mat Min Exi Min Mat Gar Fac Gar Fac Gar Fac Gar Fac Gar Fac Ext Res Gar Used RIF Installer 7 | . . . . . . . . 2 . 1 . 1 . 1 . 1 . . . 1 Hotswap 1 | . . . . . . . . . . . . . . . . . . . . 1 Command Fork 1 | . . . . . . . . . . 1 . . . . . . . . . . Zone Cloak 1 | . . . . . . . . 1 . . . . . . . . . . . . Watcher Feeds 1 | . . . . . . . . . . . . 1 . . . . . . . . Program Shield 1 | . . . . . . . . . . . . . . . . 1 . . . . Autoassimilate 1 | . . . . . . . . . . . . . . 1 . . . . . . Robots Hacked 63 | . . . . . . . . . 4 3 4 1 18 4 5 11 5 4 . 4 Non-combat 12 | . . . . . . . . . . . 3 . 2 . 5 . 2 . . . Combat 51 | . . . . . . . . . 4 3 1 1 16 4 . 11 3 4 . 4 Autoassimilated 10 | . . . . . . . . . . . . . . . . 3 2 3 . 2 Robot Hacks Applied 58 | . . . . . . . . . 5 3 4 1 21 4 5 8 4 1 . 2 map_walls 1 | . . . . . . . . . . . . . 1 . . . . . . . drop_inventory 2 | . . . . . . . . . . . . . . . 1 . 1 . . . ignore_parts 3 | . . . . . . . . . . . . . . . 3 . . . . . map_route 2 | . . . . . . . . . . . . . . . 1 . 1 . . . find_garrison 4 | . . . . . . . . . 1 . 1 . 2 . . . . . . . disrupt_area 2 | . . . . . . . . . . . . . 2 . . . . . . . reboot_system 2 | . . . . . . . . . . . . . 1 . . . . 1 . . overwrite_iff 14 | . . . . . . . . . 3 3 . . 4 1 . 3 . . . . streamctrl_high 1 | . . . . . . . . . . . . . 1 . . . . . . . formatsys_low 3 | . . . . . . . . . . . 3 . . . . . . . . . formatsys_high 24 | . . . . . . . . . 1 . . 1 10 3 . 5 2 . . 2 Relay Couplers Released 52 | . . . . . . . . 10 . 7 . 14 3 4 . 8 . . . 6 Machine Destruction 52 | . . . . . . . . 10 . 7 . 14 3 4 . 8 . . . 6 Attached 36 | . . . . . . . . 1 2 3 1 2 10 2 4 8 . . . 3 Fabnet Peak Effective % . | . . . . . . . . . . . . . . . . . . . . . Robots Rewired 6 | . . . . . . . . . . . . . . . . . . 3 . 3 Allies Hacked 3 | . . . . . . . . . . . . 1 1 1 . . . . . . Hacks Repelled . | . . . . . . . . . . . . . . . . . . . . . Allies | -11 -10 -10 -9 -9 -9 -8 -8 -8 -7 -7 -7 -7 -6 -6 -5 -5 -4 -4 -3 -3 -------- Run | Scr Mat Min Mat Min Exi Min Mat Gar Fac Gar Fac Gar Fac Gar Fac Gar Fac Ext Res Gar Total Allies 86 | . . 2 . . . . . . 4 3 9 4 28 4 . 14 4 6 . 8 Largest Group 14 | . . 2 2 . . . . . 2 2 7 9 14 5 . 5 6 7 . 8 Highest-Rated Group 435 | . . 52 52 . . . . . 29 32 176 319 435 182 . 128 253 341 . 345 Highest-Rated Ally 90 | . . 31 31 . . . . . 29 16 37 80 90 41 . 41 56 56 . 48 Total Orders 9 | . . . . . . . . . . . 1 6 . . . . 2 . . . STAY 1 | . . . . . . . . . . . . . . . . . 1 . . . FOLLOW 1 | . . . . . . . . . . . . . . . . . 1 . . . AID 1 | . . . . . . . . . . . 1 . . . . . . . . . PICKUP 2 | . . . . . . . . . . . . 2 . . . . . . . . COLLECT 4 | . . . . . . . . . . . . 4 . . . . . . . . Ally Attacks 609 | . . 13 6 . . . . . 15 10 17 69 227 40 . 78 2 96 . 36 Total Damage 13601 | . . 211 107 . . . . . 230 78 119 2036 4917 829 . 1095 12 3096 . 871 Kills 109 | . . 3 3 . . . . . 1 . 2 19 37 9 . 10 . 21 . 4 Allies Corrupted 2 | . . . . . . . . . . . 1 . 1 . . . . . . . Allies Melted . | . . . . . . . . . . . . . . . . . . . . . Intel | -11 -10 -10 -9 -9 -9 -8 -8 -8 -7 -7 -7 -7 -6 -6 -5 -5 -4 -4 -3 -3 ------- Run | Scr Mat Min Mat Min Exi Min Mat Gar Fac Gar Fac Gar Fac Gar Fac Gar Fac Ext Res Gar Robot Analysis Total 2 | . . . 2 . . . . . . . . . . . . . . . . . Derelict Logs Recovered 4 | . . 2 . 2 . . . . . . . . . . . . . . . . Drone Launches . | . . . . . . . . . . . . . . . . . . . . . Drone Recoveries . | . . . . . . . . . . . . . . . . . . . . . Exploration | -11 -10 -10 -9 -9 -9 -8 -8 -8 -7 -7 -7 -7 -6 -6 -5 -5 -4 -4 -3 -3 ------------- Run | Scr Mat Min Mat Min Exi Min Mat Gar Fac Gar Fac Gar Fac Gar Fac Gar Fac Ext Res Gar Turns Passed 14051 | 3 388 267 515 338 710 581 412 1976 708 1207 1303 1079 817 775 432 868 357 752 130 433 Spaces Moved 6244 | 1 171 146 222 208 355 238 122 686 248 512 564 439 359 384 177 370 226 469 108 239 Core 80 | . . . . . . . . . . . . . . 3 34 26 . . . 17 Treads 4279 | 1 171 146 222 208 355 238 122 686 248 359 254 439 176 43 143 344 122 . . 2 Legs 1281 | . . . . . . . . . . 153 . . . 227 . . 104 469 108 220 Wheels 604 | . . . . . . . . . . . 310 . 183 111 . . . . . . Hover . | . . . . . . . . . . . . . . . . . . . . . Flight . | . . . . . . . . . . . . . . . . . . . . . Fastest Speed 50 | 160 160 160 160 160 160 240 240 160 232 110 140 160 115 115 50 50 120 120 120 50 Average Speed 187 | 160 160 160 160 160 198 240 240 238 239 201 181 227 184 178 201 178 141 124 120 116 Slowest Speed 700 | 160 160 160 160 160 240 240 240 240 240 320 320 240 245 700 245 240 160 190 120 240 Overloaded Moves . | . . . . . . . . . . . . . . . . . . . . . Propulsion Burnouts . | . . . . . . . . . . . . . . . . . . . . . Robots Hopped . | . . . . . . . . . . . . . . . . . . . . . Cave-ins Triggered . | . . . . . . . . . . . . . . . . . . . . . Exploration Rate (%) 35 | 2 42 46 24 51 66 59 19 81 10 55 15 59 21 44 11 42 8 51 6 24 Regions Visited 20 Branch Regions 5 Pre-discovered Areas 2 | . . 1 . 1 . . . . . . . . . . . . . . . . Known Exits Taken 10 | . 1 1 1 . . 1 1 . 1 . 1 . 1 . 1 . . . 1 . Unknown Exits Taken 5 | 1 . . . 1 1 . . . . . . . . . . . 1 1 . . Scrap Searched 3 | . . 1 . 1 . 1 . . . . . . . . . . . . . . Spaces Dug 77 | . 1 . 27 . . . . 5 3 6 13 10 1 3 . . . . . 8 Terrain Destroyed 207 | . 1 . 35 . . 1 6 39 3 8 18 63 1 15 2 4 . 2 . 9 Melee 27 | . 1 . 2 . . . . . 3 4 4 1 1 3 . . . . . 8 Projectile 22 | . . . . . . 1 . 7 . . 5 . . . 2 4 . 2 . 1 AOE 158 | . . . 33 . . . 6 32 . 4 9 62 . 12 . . . . . . Terrain Rammed . | . . . . . . . . . . . . . . . . . . . . . Walls Destroyed . | . . . . . . . . . . . . . . . . . . . . . Machines Disabled . | . . . . . . . . . . . . . . . . . . . . . Actions | -11 -10 -10 -9 -9 -9 -8 -8 -8 -7 -7 -7 -7 -6 -6 -5 -5 -4 -4 -3 -3 --------- Run | Scr Mat Min Mat Min Exi Min Mat Gar Fac Gar Fac Gar Fac Gar Fac Gar Fac Ext Res Gar Total 7804 | 4 230 160 316 212 361 244 196 907 323 647 771 504 467 453 226 502 256 565 108 352 Wait 440 | . . . 23 . . . 29 58 16 54 111 20 21 1 6 41 8 4 . 48 Move 6227 | . 170 145 221 207 354 237 122 685 248 511 563 438 359 382 177 369 225 468 107 239 Hop . | . . . . . . . . . . . . . . . . . . . . . Pick Up 131 | . 11 . 7 1 3 . 5 27 5 11 12 11 9 6 7 3 5 8 . . Fast Attach 83 | . 7 . 5 . . . . 5 6 7 3 3 3 3 5 18 5 9 1 3 Attach 88 | 2 1 . 5 . . 1 5 15 3 8 12 2 8 7 5 2 . 5 . 7 Detach 17 | . . . . . . 2 1 4 1 2 . . 1 3 . 1 . 2 . . Swap 82 | . 2 . 6 1 1 . 5 7 8 4 3 6 5 4 3 8 1 10 . 8 Drop 110 | 2 6 . 8 1 3 . 1 23 9 13 9 6 7 4 3 3 2 6 . 4 Fire 409 | . 30 11 39 . . . 27 43 18 16 43 9 37 7 19 51 8 43 . 8 Melee 157 | . 1 . 2 . . . . 38 9 14 15 5 16 17 . 6 . 6 . 28 Ram 8 | . . . . . . . . . . . . . . 1 . . . . . 7 Kick 4 | . . . . . . . . . . . . . . . . . . 4 . . Crush 17 | . 2 4 . 2 . 4 1 . . 1 . . . . 1 . 2 . . . Escape Stasis 27 | . . . . . . . . 2 . 6 . 4 . 15 . . . . . . Rewire . | . . . . . . . . . . . . . . . . . . . . . Trap 4 | . . . . . . . . . . . . . 1 3 . . . . . . Miscellaneous . | . . . . . . . . . . . . . . . . . . . . . Route ------- -11/Scrapyard -10/Materials (discovered 3 exits: *Mat x2 / *Min) -10/Mines -9/Materials (discovered 5 exits: Mat x3 / *Min x2) -9/Mines (discovered 2 exits: *Mat / *Exi) -9/Exiles -8/Mines -8/Materials (discovered 2 exits: Fac / Gar) -8/Garrison (discovered 2 exits: *Fac x2) -7/Factory -7/Garrison (discovered 2 exits: *Fac x2) -7/Factory (discovered 2 exits: [*Low] / Gar) -7/Garrison (discovered 3 exits: *Fac x3) -6/Factory (discovered 2 exits: *Fac / Gar) -6/Garrison (discovered 2 exits: *Fac x2) -5/Factory (discovered 2 exits: *Upp / Gar) -5/Garrison (discovered 3 exits: *Fac x3) -4/Factory (discovered 2 exits: *Ext / Gar) -4/Extension -3/Research (discovered 2 exits: [*Tes] / Gar) -3/Garrison History --------- Turn | Location | Event 4 | -11/Scrapyard | Discovered new exit (range 0) 4 | -11/Scrapyard | Entered Materials 159 | -10/Materials | Discovered new exit (range 4) 310 | -10/Materials | Discovered new exit (range 6) 313 | -10/Materials | Build established: Mutant 332 | -10/Materials | Identified exit to Materials 368 | -10/Materials | Discovered new exit (range 15) 390 | -10/Materials | Identified exit to Mines 392 | -10/Materials | Entered Mines 428 | -10/Mines | Met a Derelict bent on vengeance 438 | -10/Mines | Learned location of 1 exit from Materials 501 | -10/Mines | Learned location of Storage (-7) 597 | -10/Mines | Learned Materials interactive machine intel 616 | -10/Mines | Discovered exit to Materials (range 8) 659 | -10/Mines | Entered Materials 659 | -9/Materials | Accompanied by 2 allies 659 | -9/Materials | Evolved 2 slots: Utility x2 660 | -9/Materials | Identified exit to Materials 661 | -9/Materials | Loaded intel: 18 interactive machine locations 664 | -9/Materials | Led the pair of lost Derelicts to an unsafe place 668 | -9/Materials | Identified exit to Mines 1015 | -9/Materials | Central database locked down 1073 | -9/Materials | Destroyed 10 combat bots 1174 | -9/Materials | Entered Mines 1189 | -9/Mines | Learned 4 Materials zone layouts 1208 | -9/Mines | Discovered exit to Materials (range 10) 1402 | -9/Mines | Found a damaged Exp. Sensor Array with a note attached 1407 | -9/Mines | Found Prototype Device 1427 | -9/Mines | Build established: Scavenger-Mutant 1505 | -9/Mines | Deemed a non-threat by the Exiles lab entrance 1505 | -9/Mines | Discovered new exit (range 5) 1512 | -9/Mines | Entered Exiles 1552 | -9/Exiles | Met 8R-AWN 1578 | -9/Exiles | Met EX-HEX 1626 | -9/Exiles | Met EX-BIN 1644 | -9/Exiles | Aligned with FarCom system 1645 | -9/Exiles | Given EX-Vault access code 1682 | -9/Exiles | Opened EX-Vault 1694 | -9/Exiles | Found AWS/Thermal 1729 | -9/Exiles | Warned to stay clear of 0b10 Research branches 2090 | -9/Exiles | Met EX-DEC 2191 | -9/Exiles | Discovered new exit (range 14) 2222 | -9/Exiles | Left Exiles lab with AWS/Thermal 2222 | -9/Exiles | Entered Mines 2620 | -8/Mines | Discovered exit to Materials (range 14) 2803 | -8/Mines | Entered Materials 2803 | -8/Materials | Evolved 2 slots: Utility x2 2804 | -8/Materials | Identified exit to Factory 3215 | -8/Materials | Identified exit to Garrison 3215 | -8/Materials | Entered Garrison 3322 | -8/Garrison | Build established: Hacker-Mutant 3552 | -8/Garrison | Triggered checkpoint 3675 | -8/Garrison | Triggered checkpoint 3995 | -8/Garrison | Discovered exit to Factory (range 15) 4083 | -8/Garrison | Triggered checkpoint 4222 | -8/Garrison | Triggered checkpoint 4249 | -8/Garrison | Triggered checkpoint 4369 | -8/Garrison | Build established: Mutant 4472 | -8/Garrison | Triggered checkpoint 4541 | -8/Garrison | Installed Relay Interface Framework 4683 | -8/Garrison | Discovered exit to Factory (range 12) 4734 | -8/Garrison | Expanded RIF knowledge: Zone Cloak 4782 | -8/Garrison | Triggered checkpoint 4842 | -8/Garrison | Garrison Relay disabled 5059 | -8/Garrison | Garrison Relay disabled 5137 | -8/Garrison | Build established: Bothacker-Mutant 5191 | -8/Garrison | Entered Factory 5191 | -7/Factory | Evolved 2 slots: Utility x2 5731 | -7/Factory | Garrison activated, responded to threat 5899 | -7/Factory | Identified exit to Garrison 5899 | -7/Factory | Entered Garrison 6026 | -7/Garrison | Triggered checkpoint 6035 | -7/Garrison | Garrison Relay disabled 6180 | -7/Garrison | Triggered checkpoint 6230 | -7/Garrison | Triggered checkpoint 6428 | -7/Garrison | Discovered new exit (range 11) 6726 | -7/Garrison | Triggered checkpoint 6810 | -7/Garrison | Discovered new exit (range 15) 6815 | -7/Garrison | Heavy support dispatched to Factory 6853 | -7/Garrison | Expanded RIF knowledge: Command Fork 6918 | -7/Garrison | Triggered checkpoint 6986 | -7/Garrison | Garrison Relay disabled 7106 | -7/Garrison | Entered Factory 7688 | -7/Factory | Core integrity fell below 50% 7852 | -7/Factory | Identified exit to Garrison 8029 | -7/Factory | Discovered new exit (range 8) 8250 | -7/Factory | Fabricated P-60 Hacker (x2) 8290 | -7/Factory | Lost 3 parts (1p1n1w) 8325 | -7/Factory | Fabricated P-60 Hacker? 8409 | -7/Factory | Entered Garrison 8409 | -7/Garrison | Accompanied by 7 allies 8440 | -7/Garrison | Triggered checkpoint 8553 | -7/Garrison | Garrison Relay disabled 8643 | -7/Garrison | Found embedded Infiltrators 8758 | -7/Garrison | Triggered checkpoint 8781 | -7/Garrison | Hacker 4b assimilated hostile G-47 Trooper 8782 | -7/Garrison | Triggered checkpoint 8804 | -7/Garrison | Triggered checkpoint 8878 | -7/Garrison | Triggered checkpoint 8958 | -7/Garrison | Triggered checkpoint 9076 | -7/Garrison | Discovered new exit (range 10) 9107 | -7/Garrison | Discovered new exit (range 7) 9107 | -7/Garrison | Discovered new exit (range 51) 9107 | -7/Garrison | Discovered new exit (range 74) 9184 | -7/Garrison | Garrison Relay disabled 9336 | -7/Garrison | Triggered checkpoint 9359 | -7/Garrison | Garrison Relay disabled 9441 | -7/Garrison | Expanded RIF knowledge: Watcher Feeds 9488 | -7/Garrison | Entered Factory 9488 | -6/Factory | Accompanied by 7 allies 9488 | -6/Factory | Evolved 2 slots: Utility x2 9700 | -6/Factory | Hacker 4a assimilated hostile L-41 Fighter 9763 | -6/Factory | Build established: Botlord-Mutant 9764 | -6/Factory | Garrison activated, responded to threat 9802 | -6/Factory | Discovered new exit (range 18) 9838 | -6/Factory | First assault squad dispatched 10104 | -6/Factory | Allied Derelicts emerged from ambush trap array 10285 | -6/Factory | Garrison activated, responded to threat 10304 | -6/Factory | Identified exit to Garrison 10305 | -6/Factory | Entered Garrison 10305 | -6/Garrison | Accompanied by 4 allies 10356 | -6/Garrison | Triggered checkpoint 10395 | -6/Garrison | Lost 4 parts (1p1n1u1w) 10404 | -6/Garrison | Garrison Relay disabled 10618 | -6/Garrison | Triggered checkpoint 10626 | -6/Garrison | Triggered checkpoint 10700 | -6/Garrison | Discovered new exit (range 11) 11003 | -6/Garrison | Lost 3 parts (1p2u) 11032 | -6/Garrison | Discovered new exit (range 15) 11050 | -6/Garrison | Core integrity fell below 50% 11057 | -6/Garrison | Expanded RIF knowledge: Autoassimilate 11080 | -6/Garrison | Entered Factory 11080 | -5/Factory | Evolved 2 slots: Utility x2 11371 | -5/Factory | Discovered new exit (range 15) 11394 | -5/Factory | Identified exit to Upper Caves 11512 | -5/Factory | Identified exit to Garrison 11512 | -5/Factory | Entered Garrison 11551 | -5/Garrison | Core integrity fell below 50% 11615 | -5/Garrison | Lost 10 parts (2n5u3w) 11640 | -5/Garrison | Triggered checkpoint 11676 | -5/Garrison | Discovered new exit (range 80) 11676 | -5/Garrison | Discovered new exit (range 75) 11676 | -5/Garrison | Discovered new exit (range 43) 11698 | -5/Garrison | Garrison Relay disabled 12035 | -5/Garrison | Triggered checkpoint 12134 | -5/Garrison | Expanded RIF knowledge: Program Shield 12264 | -5/Garrison | Triggered checkpoint 12303 | -5/Garrison | Garrison Relay disabled 12380 | -5/Garrison | Entered Factory 12380 | -4/Factory | Accompanied by 2 allies 12380 | -4/Factory | Evolved 2 slots: Utility x2 12544 | -4/Factory | Identified exit to Garrison 12633 | -4/Factory | Discovered new exit (range 13) 12737 | -4/Factory | Entered Extension 12737 | -4/Extension | Accompanied by 6 allies 12965 | -4/Extension | Lost 3 parts (3u) 13026 | -4/Extension | Lost 4 parts (3u1w) 13087 | -4/Extension | Disrupted transfer network 13296 | -4/Extension | Build established: Bothacker-Mutant 13455 | -4/Extension | Spotted B-86 Titan 13468 | -4/Extension | Spotted B-86 Titan 13484 | -4/Extension | Discovered new exit (range 3) 13487 | -4/Extension | First assault squad dispatched 13487 | -4/Extension | Allies destroyed B-86 Titan 13489 | -4/Extension | Entered Research 13489 | -3/Research | Evolved 2 slots: Utility x2 13509 | -3/Research | Discovered new exit (range 16) 13519 | -3/Research | Lost 6 parts (1p3u2w) 13600 | -3/Research | Identified exit to Garrison 13619 | -3/Research | Entered Garrison 13689 | -3/Garrison | Expanded RIF knowledge: Hotswap 13760 | -3/Garrison | Triggered checkpoint 13809 | -3/Garrison | Garrison Relay disabled 13830 | -3/Garrison | Triggered checkpoint 13994 | -3/Garrison | Spotted B-86 Titan 14001 | -3/Garrison | Triggered checkpoint 14002 | -3/Garrison | Triggered checkpoint 14006 | -3/Garrison | Triggered checkpoint 14012 | -3/Garrison | Triggered checkpoint 14026 | -3/Garrison | Triggered checkpoint 14043 | -3/Garrison | Garrison Relay disabled 14044 | -3/Garrison | Core integrity fell below 50% 14049 | -3/Garrison | Core integrity fell below 20% 14052 | -3/Garrison | Destroyed by Y-72 Warden with Quantum Rifle Last Messages --------------- 14043_ Enh. Armored Leg destroyed. 14043_ Slug penetrates Wall. 14045_ Slammed into S-43 Plague. 14046_ Slug penetrates S-43 Plague. 14046_ S-43 Plague destroyed. 14046_ Slammed into S-43 Plague. 14046_ Relay Coupler [Hunter] destroyed. 14047_ Slammed into S-43 Plague. 14048_ Penetrated by Slug. 14048_ Slug penetrates Reinforced Barrier. 14048_ Adv. Hacking Suite destroyed. 14049_ Slammed into G-67 Veteran. 14049_ Destabilizing: System corrupted (+1). 14050_ Slug penetrates S-43 Plague. 14050_ Slug penetrates Reinforced Barrier. 14050_ Penetrated by Slug. 14050_ Slug penetrates Reinforced Barrier. 14050_ Slammed into G-67 Veteran. 14050_ Relay Coupler [Swarmer] destroyed. 14051_ Slammed into G-67 Veteran. Map ----- +----------------------------------------------------+ | ???????????????????????# ??????????????????????? | | ???????????????????????# ??????????????????????? | | ?????????????????? ???## ??????????????????????? | | ???????????????? ? #?????????????????????? | | ???????????????? ? #?????????????????????? | | ???????????????? ? #?????????????????????? | | ????????????? ?#% ?# #?????????????????????? | | ????????????? ##* ## ###???????????????????? | | ???????????? =%=^ ????????????????????? | | ????????????? ! ^ ????????????????????? | | ?????????????? % ?????????????????????? | | ???????????????? =%=/ ?????????????????????? | | ????????????????## "!% ##??????###???????????? | | ????????????# #" %= "= "########"#??????###### | | ????????????# === *%!% % #??? | | ????????????+ [%[= %!=%!% #??? | | ????????????# " =%%* !=!=######## #??????????## | | ?????????????#"%## ##*/##?????## #???????????? | | ?????????????????# ???# ##?????#" #???????????? | | ???????????????????????# %;#?????## #???????????? | | ???????????????????????# ;##?????# #???????????? | | ???????????????????????# ; #?????# #???????????? | | ???????????????????????#BB###?????# #???????????? | | ???????????????????????#BB#???????# #???????????? | | ???????????????????????#gY###?????# #???????????? | | ???????????????????????#g@Y #????## #???????????? | | ???????????????????????#p %%#????#" #???????????? | | ???????????????????????#s%ss#????## #???????????? | | ?????????????????????###YY###?????# #???????????? | | ?????????????????????#"#%[#???????# #???????????? | | ?????????????????????#"== #???????# #???????????? | | ?????????????????????#"! #???????# #????????###? | | ?????????????????????# ! #???????# #???????##"## | | ?????????????????????#"#! #???????# #???????# # | | ?????????????????????#### #??????## ######### # | | ????????????????????????# #??????#" | | ????????????????????????# #??????## | | ????????????????????????" #???????################ | | ????????????????????????T #??????????????????????? | | ????????????????????????""#??????????????????????? | | ????????????????????????###??????????????????????? | | ?????????????????????????????????????????????????? | | ?????????????????????????????????????????????????? | | ?????????????????????????????????????????????????? | | ?????????????????????????????????????????????????? | | ?????????????????????????????????????????????????? | | ?????????????????????????????????????????????????? | | ?????????????????????????????????????????????????? | | ??????????????????????????????????????????###?#### | | ?????????????????????????????????????????##"### | +----------------------------------------------------+ Best States ------------- Heat Dissipation 100 Coolant Potential 100 Energy Generation 21 Energy Capacity 315 Matter Stores 800 Matter Capacity 800 Sight Range 16 Terrain Scan Density 10 Armor Coverage 300 Point Defense Rating 160 Phase Shifting 10 Evasion (%) 65 Targeting Accuracy 8 Melee Accuracy 8 Recoil Reduction 2 Salvage Targeting 3 Offensive Hacking 24 Relay Coupler Types 8 Relay Coupler Value 179 Authchip Count 2 Item Schematics ----------------- None Robot Schematics ------------------ P-60 Hacker | -7/Factory | Hacked Fabricated ------------ P-60 Hacker | x2 | -7/Factory | Authchip P-60 Hacker | x2 | -7/Factory | Authchip Alien Tech Used ----------------- None Achievements -------------- None Challenges ------------ None Game ------ Seed SuspensionAdvancedLaser Manual? 0 Play Time 02:46:58 Cumulative 276.2 hours Start 2022.08.03 @ 11:48:59 End 2022.08.04 @ 08:15:21 Sessions 5 Manual Loads 0 Difficulty Rogue Special Mode None Game No. 321 Rogue 321 Adventurer 0 Explorer 0 Win Type - Total 11 Types 8/0/2/1/0/0/0/0/0 Lore% 70 Gallery% 87 Achievement% 74 Wizard Run 0 Options --------- ASCII 0 Keyboard 0 Movement Numpad Keybinds 0 Fullscreen 1 Font 18/Terminus Map View 76x50 Tactical HUD 1 Map Filters NONE Filters NONE Steam 1 RUN: 496ed3ab-de13-43de-83c7-deb36be50758